bitfinex/quotes_SOLUSD_20240726
["timestamp","ask_amount","ask_price","bid_price","bid_amount"]
[1721972532001,1.41404423,176.88,176.77,12.44]
[1721972532211,12.44,176.83,176.8,12.44]
[1721972532404,1.41404423,176.88,176.8,12.44]
[1721972532592,12.44,176.83,176.8,12.44]
[1721972533004,12.44,176.83,176.73,22.9954361]
[1721972533198,12.44,176.83,176.8,12.44]
[1721972533907,12.44,176.83,176.79,12.44]
[1721972534090,12.44,176.83,176.74,65.0]
[1721972534294,12.44,176.83,176.79,12.44]
[1721972534494,12.44,176.8,176.69,11.90084113]
[1721972534704,1.41388161,176.82,176.7,12.44]
[1721972534705,12.44,176.74,176.7,12.44]
[1721972535003,12.44,176.74,176.69,6.0344]
[1721972535004,12.44,176.74,176.69,18.4744]
[1721972535192,7.07105771,176.79,176.71,12.7634917]
[1721972535385,12.44,176.75,176.71,12.7634917]
[1721972536001,5.656,176.81,176.72,12.44]
[1721972536207,12.44,176.76,176.72,12.44]
[1721972536510,12.44,176.77,176.73,12.44]
[1721972537222,12.44,176.76,176.72,12.44]
[1721972538508,5.6562,176.8,176.74,12.44]
[1721972538711,12.44,176.78,176.74,12.44]
[1721972540017,5.6561,176.8,176.73,12.44]
[1721972540193,12.44,176.77,176.73,12.44]
[1721972540802,12.44,176.77,176.71,0.3234917]
[1721972541119,12.44,176.79,176.75,12.44]
[1721972541621,5.6558,176.81,176.75,12.44]
[1721972541997,12.44,176.79,176.75,12.44]
[1721972542202,12.44,176.78,176.74,12.44]
[1721972544331,5.6557,176.81,176.74,12.44]
[1721972544625,12.44,176.78,176.74,12.44]
[1721972545029,12.44,176.79,176.75,12.44]
[1721972547937,12.44,176.8,176.76,12.44]
[1721972548106,12.44,176.83,176.79,12.44]
[1721972548307,3.8847,176.88,176.8,12.44]
[1721972548521,12.44,176.84,176.8,12.44]
[1721972548859,5.6546,176.85,176.79,12.44]
[1721972549030,12.44,176.83,176.79,12.44]
[1721972549523,12.44,176.82,176.78,12.44]
[1721972550131,12.44,176.79,176.75,12.44]
[1721972551134,12.44,176.78,176.74,12.44]
[1721972551825,12.44,176.81,176.77,12.44]
[1721972552910,12.44,176.8,176.76,12.44]
[1721972555639,5.6551,176.83,176.76,12.44]
[1721972555811,12.44,176.8,176.76,12.44]
[1721972556012,12.44,176.81,176.77,12.44]
[1721972557638,12.44,176.81,176.77,11.94]
[1721972558237,12.44,176.8,176.77,11.94]
[1721972558937,12.44,176.8,176.72,15.61670489]
[1721972558938,12.44,176.8,176.76,12.44]
[1721972561037,12.44,176.81,176.77,12.44]
[1721972563136,12.44,176.8,176.76,12.44]
[1721972564846,12.44,176.81,176.77,12.44]
[1721972565646,12.44,176.78,176.71,0.60736175]
[1721972565844,49.76,176.85,176.72,12.44]
[1721972565845,97.0694,176.85,176.72,12.44]
[1721972566015,12.44,176.78,176.74,12.44]
[1721972566549,12.44,176.8,176.76,12.44]
[1721972567110,12.44,176.8,176.75,16.3567]
[1721972567343,12.44,176.8,176.76,12.44]
[1721972568257,5.6555,176.82,176.76,12.44]
[1721972568530,12.44,176.81,176.77,12.44]
[1721972570441,5.6552,176.83,176.77,12.44]
[1721972570760,12.44,176.81,176.77,12.44]
[1721972573438,12.44,176.81,176.75,16.3567]
[1721972573736,12.44,176.81,176.77,12.44]
[1721972575855,12.44,176.8,176.75,16.3567]
[1721972576141,12.44,176.8,176.76,12.44]
[1721972576448,12.44,176.79,176.75,28.7967]
[1721972577844,1.41414064,176.84,176.75,28.7967]
[1721972577845,5.6551,176.83,176.75,28.7967]
[1721972578135,12.44,176.79,176.75,28.7967]
[1721972578343,12.44,176.8,176.75,28.7967]
[1721972579429,12.44,176.8,176.76,12.44]
[1721972580942,12.44,176.8,176.75,28.7967]
[1721972581439,5.6551,176.83,176.75,28.7967]
[1721972581654,12.44,176.79,176.75,28.7967]
[1721972581818,12.44,176.8,176.75,28.7967]
[1721972583148,12.44,176.8,176.76,12.44]
[1721972583344,12.44,176.81,176.77,12.44]
[1721972584550,5.6545,176.85,176.77,12.44]
[1721972584847,12.44,176.81,176.77,12.44]
[1721972585534,12.44,176.81,176.78,0.2837699]
[1721972586323,12.44,176.81,176.75,16.3567]
[1721972586523,12.44,176.81,176.77,12.44]
[1721972586753,12.44,176.81,176.76,12.44]
[1721972587534,12.44,176.81,176.75,16.3567]
[1721972587747,12.44,176.81,176.76,12.44]
[1721972588659,12.44,176.81,176.77,0.28380168]
[1721972588826,12.44,176.81,176.76,12.44]
[1721972589928,12.44,176.81,176.77,12.44]
[1721972590125,11.16614347,176.88,176.77,18.5842]
[1721972590329,12.44,176.83,176.78,12.44]
[1721972591648,12.44,176.82,176.78,12.44]
[1721972591844,5.6542,176.86,176.79,12.44]
[1721972592163,12.44,176.84,176.79,12.44]
[1721972592453,12.44,176.83,176.79,12.44]
[1721972595224,5.6539,176.87,176.8,12.44]
[1721972595447,12.44,176.84,176.8,12.44]
[1721972595753,12.44,176.85,176.81,12.44]
[1721972596138,12.44,176.84,176.8,12.44]
[1721972598938,12.44,176.83,176.79,12.44]
[1721972599662,12.44,176.82,176.78,12.44]
[1721972601571,12.44,176.8,176.77,6.1442]
[1721972602067,13.8540409,176.85,176.77,6.1442]
[1721972602068,12.44,176.79,176.77,6.1442]
[1721972602452,12.44,176.8,176.77,6.1442]
[1721972603538,12.44,176.78,176.71,0.3234917]
[1721972603741,55.0587409,176.85,176.71,0.3234917]
[1721972603742,12.44,176.77,176.73,12.44]
[1721972605863,12.44,176.78,176.74,12.44]
[1721972613469,12.44,176.76,176.71,0.3234917]
[1721972613865,12.44,176.77,176.73,12.44]
[1721972614069,12.44,176.77,176.71,0.3234917]
[1721972614275,12.44,176.75,176.71,0.3234917]
[1721972614486,12.44,176.75,176.72,12.44]
[1721972614690,12.44,176.74,176.71,0.3234917]
[1721972615193,12.44,176.75,176.71,12.7634917]
[1721972615497,12.44,176.76,176.72,12.44]
[1721972615777,21.054,176.82,176.71,0.3234917]
[1721972615778,15.3983,176.82,176.73,12.44]
[1721972615966,12.44,176.78,176.74,12.44]
[1721972617977,12.44,176.79,176.75,12.44]
[1721972618968,12.44,176.77,176.73,12.44]
[1721972619163,12.44,176.76,176.72,12.44]
[1721972619480,12.44,176.74,176.71,0.3234917]
[1721972619668,12.44,176.73,176.71,0.3234917]
[1721972620370,12.44,176.72,176.71,0.3234917]
[1721972626664,11.94,176.72,176.71,0.3234917]
[1721972626963,12.44,176.72,176.71,0.3234917]
[1721972629673,7.07257266,176.75,176.71,0.3234917]
[1721972629973,12.44,176.72,176.71,0.3234917]
[1721972630990,19.5136464,176.72,176.71,0.3234917]
[1721972631790,19.5136464,176.72,176.67,0.6209308]
[1721972631993,12.44,176.68,176.67,0.6209308]
[1721972634672,1.415103,176.73,176.67,0.6209308]
[1721972634877,12.44,176.68,176.67,0.6209308]
[1721972636894,1.41510281,176.71,176.67,0.6209308]
[1721972637090,12.44,176.68,176.67,0.6209308]
[1721972638770,7.07420281,176.71,176.67,0.6209308]
[1721972638990,12.44,176.68,176.67,0.6209308]
[1721972641594,5.6583,176.73,176.67,0.6209308]
[1721972641795,12.44,176.68,176.67,0.6209308]
[1721972642376,5.6583,176.73,176.67,0.6209308]
[1721972642580,12.44,176.68,176.67,0.6209308]
[1721972642789,5.6583,176.73,176.67,0.6209308]
[1721972642987,12.44,176.7,176.67,0.6209308]
[1721972643283,12.44,176.71,176.67,13.0609308]
[1721972644103,7.07256502,176.75,176.67,0.6209308]
[1721972644301,12.44,176.7,176.67,0.6209308]
[1721972644499,21.63173301,176.79,176.69,12.44]
[1721972644691,21.63173301,176.79,176.72,12.44]
[1721972644692,12.44,176.75,176.72,12.44]
[1721972644882,12.44,176.75,176.71,12.44]
[1721972645086,12.44,176.74,176.7,19.1005]
[1721972645987,12.44,176.75,176.71,12.44]
[1721972649214,12.44,176.74,176.7,19.1005]
[1721972649389,12.44,176.73,176.7,6.6605]
[1721972650401,12.44,176.71,176.67,0.6209308]
[1721972650606,12.44,176.68,176.67,0.6209308]
[1721972651113,5.6586,176.72,176.67,0.6209308]
[1721972651320,12.44,176.68,176.67,0.6209308]
[1721972652199,12.44,176.69,176.67,0.6209308]
[1721972656828,5.658,176.74,176.67,0.6209308]
[1721972657005,12.44,176.72,176.68,12.44]
[1721972657316,5.6567,176.78,176.71,12.44]
[1721972657520,12.44,176.74,176.7,12.44]
[1721972657691,12.44,176.76,176.72,18.7089]
[1721972657892,12.44,176.76,176.72,35.061]
[1721972658607,7.06994191,176.82,176.73,12.44]
[1721972658804,15.7726,176.83,176.74,12.44]
[1721972658992,12.44,176.78,176.74,12.44]
[1721972659988,12.44,176.77,176.73,12.44]
[1721972662699,5.6561,176.8,176.73,12.44]
[1721972662899,12.44,176.77,176.73,12.44]
[1721972663609,5.6558,176.81,176.73,12.44]
[1721972663818,15.7726,176.83,176.75,12.44]
[1721972664013,12.44,176.79,176.75,12.44]
[1721972666223,12.44,176.78,176.74,12.44]
[1721972668628,5.6555,176.82,176.74,12.44]
[1721972668801,12.44,176.78,176.74,12.44]
[1721972669010,12.44,176.79,176.75,12.44]
[1721972669318,5.6548,176.84,176.76,12.44]
[1721972669502,12.44,176.8,176.76,12.44]
[1721972670303,17.59714713,176.87,176.77,12.44]
[1721972670505,12.44,176.81,176.77,12.44]
[1721972671400,7.06804713,176.87,176.78,12.44]
[1721972671599,12.44,176.83,176.79,12.44]
[1721972672004,5.6535,176.89,176.81,12.44]
[1721972672321,12.44,176.85,176.81,12.44]
[1721972673812,1.41366645,176.9,176.81,12.44]
[1721972674002,12.44,176.86,176.82,12.44]
[1721972674202,12.44,176.85,176.81,12.44]
[1721972675129,1.41366717,176.89,176.81,12.44]
[1721972675344,12.44,176.85,176.82,12.44]
[1721972675704,12.44,176.86,176.83,12.44]
[1721972676427,12.44,176.87,176.83,12.44]
[1721972676920,12.44,176.88,176.84,12.44]
[1721972677330,5.6522,176.93,176.84,12.44]
[1721972677643,5.6519,176.93,176.8,41.9163]
[1721972677843,5.6522,176.92,176.81,65.0]
[1721972678006,12.44,176.89,176.85,12.44]
[1721972681823,5.652,176.93,176.85,12.44]
[1721972682029,16.58056692,176.95,176.82,20.0]
[1721972682030,12.44,176.9,176.86,12.44]
[1721972682204,12.44,176.91,176.87,12.44]
[1721972682410,12.44,176.91,176.88,12.44]
[1721972683312,12.44,176.92,176.88,12.44]
[1721972684724,12.44,176.94,176.91,12.44]
[1721972685343,12.44,176.94,176.9,12.44]
[1721972686013,12.44,176.94,176.91,12.44]
[1721972686333,12.44,176.95,176.91,12.44]
[1721972686516,5.6504,176.98,176.91,12.44]
[1721972686719,12.44,176.95,176.91,12.44]
[1721972687945,12.44,176.94,176.87,22.9277]
[1721972688144,12.44,176.94,176.9,12.44]
[1721972688525,12.44,176.93,176.89,12.44]
[1721972689319,1.41293976,177.02,176.91,12.44]
[1721972689522,12.44,176.96,176.92,12.44]
[1721972691227,12.44,176.95,176.91,12.44]
[1721972692120,12.44,176.95,176.87,22.9277]
[1721972692323,45.0,177.02,176.88,20.0]
[1721972692324,12.44,176.92,176.88,20.0]
[1721972692533,12.44,176.92,176.88,32.44]
[1721972693055,12.44,176.93,176.89,12.44]
[1721972694240,12.44,176.93,176.88,20.0]
[1721972694438,12.44,176.93,176.9,12.44]
[1721972694740,7.06341007,176.98,176.9,12.44]
[1721972694926,12.44,176.93,176.9,12.44]
[1721972695312,12.44,176.93,176.88,20.0]
[1721972695523,12.44,176.93,176.9,12.44]
[1721972695922,12.44,176.93,176.89,12.44]
[1721972696338,12.44,176.93,176.87,22.9277]
[1721972696550,12.44,176.91,176.87,22.9277]
[1721972696718,12.44,176.91,176.87,35.3677]
[1721972696921,12.44,176.92,176.88,12.44]
[1721972697541,12.44,176.91,176.87,35.3677]
[1721972698324,12.44,176.91,176.87,22.9277]
[1721972698530,12.44,176.91,176.87,35.3677]
[1721972700953,12.44,176.92,176.88,12.44]
[1721972702434,12.44,176.92,176.87,22.9277]
[1721972702654,12.44,176.92,176.88,12.44]
[1721972703146,12.44,176.91,176.87,35.3677]
[1721972703369,1.41311466,176.97,176.88,57.44]
[1721972703668,12.44,176.92,176.88,57.44]
[1721972703957,12.44,176.93,176.89,12.44]
[1721972704525,12.44,176.93,176.87,22.9277]
[1721972704744,12.44,176.93,176.89,12.44]
[1721972705278,7.06335499,176.98,176.89,12.44]
[1721972705467,12.44,176.93,176.89,12.44]
[1721972705950,7.06334338,176.98,176.89,12.44]
[1721972706244,12.44,176.93,176.89,12.44]
[1721972712669,12.44,176.92,176.89,12.44]
[1721972713045,1.41302594,176.98,176.91,12.44]
[1721972713244,50.85231128,177.02,176.87,22.9277]
[1721972713245,12.44,176.95,176.87,22.9277]
[1721972713447,12.44,176.93,176.89,12.44]
[1721972714351,12.44,176.94,176.9,12.44]
[1721972716757,5.6503,176.98,176.9,12.44]
[1721972716978,1.4130278,177.01,176.9,12.44]
[1721972717156,12.44,176.94,176.9,12.44]
[1721972717357,12.44,176.95,176.91,12.44]
[1721972719179,1.4129207,177.02,176.92,12.44]
[1721972719349,16.1493,177.03,176.93,12.44]
[1721972719553,16.1831,177.09,176.98,12.44]
[1721972719765,12.44,177.02,176.98,12.44]
[1721972720083,16.1831,177.09,176.99,12.44]
[1721972720084,12.44,177.03,176.99,12.44]
[1721972720453,12.44,177.04,177.0,12.44]
[1721972720760,21.8299,177.09,177.01,12.44]
[1721972720964,12.44,177.05,177.01,12.44]
[1721972721365,12.44,177.04,177.0,12.44]
[1721972721981,5.6473,177.08,177.01,22.0524]
[1721972722188,12.44,177.05,177.01,34.4924]
[1721972722477,1.41212844,177.08,177.01,34.4924]
[1721972722677,12.44,177.05,177.02,12.44]
[1721972722885,12.44,177.05,177.01,34.4924]
[1721972723078,66.9465083,177.12,177.01,34.4924]
[1721972723079,5.6469,177.09,177.01,34.4924]
[1721972723271,12.44,177.05,177.01,34.4924]
[1721972723959,12.44,177.04,177.01,22.0524]
[1721972724577,5.6471,177.08,177.01,22.0524]
[1721972724865,12.44,177.04,177.01,22.0524]
[1721972725298,12.44,177.03,177.01,22.0524]
[1721972725453,7.05963032,177.07,177.01,22.0524]
[1721972725656,12.44,177.02,177.01,22.0524]
[1721972726182,12.44,177.03,177.01,22.0524]
[1721972729211,12.44,177.02,176.97,6.0712]
[1721972729398,12.44,176.98,176.97,6.0712]
[1721972729577,49.76,177.03,176.97,6.0712]
[1721972729777,12.44,176.99,176.97,6.0712]
[1721972730915,12.44,177.0,176.97,6.0712]
[1721972733406,12.44,176.99,176.97,6.0712]
[1721972734014,12.44,177.0,176.97,6.0712]
[1721972734509,12.44,177.01,176.97,18.5112]
[1721972735193,12.44,177.0,176.97,6.0712]
[1721972736009,12.44,176.99,176.97,6.0712]
[1721972736829,12.44,176.98,176.97,6.0712]
[1721972738719,12.44,176.99,176.97,6.0712]
[1721972740223,12.44,177.0,176.97,6.0712]
[1721972741421,1.41255882,177.07,176.97,6.0712]
[1721972741623,23.24282263,177.08,176.98,12.44]
[1721972741827,17.59552263,177.08,176.98,12.44]
[1721972741998,12.44,177.02,176.98,12.44]
[1721972742306,12.44,177.01,176.97,6.0712]
[1721972742508,12.44,177.0,176.97,6.0712]
[1721972742723,12.44,176.99,176.97,6.0712]
[1721972744409,12.44,177.0,176.97,6.0712]
[1721972746127,12.44,176.98,176.97,6.0712]
[1721972747503,12.44,176.99,176.97,6.0712]
[1721972747831,1.41260863,177.07,176.97,6.0712]
[1721972748140,12.44,177.0,176.97,6.0712]
[1721972748426,1.41247855,177.04,176.97,6.0712]
[1721972748738,12.44,176.99,176.97,6.0712]
[1721972751515,12.44,176.98,176.97,6.0712]
[1721972751912,12.44,176.98,176.93,6.3906]
[1721972752111,12.44,176.94,176.93,6.3906]
[1721972752423,12.44,176.94,176.88,21.6785]
[1721972752608,12.44,176.92,176.88,34.1185]
[1721972752948,12.44,176.9,176.88,21.6785]
[1721972754337,12.44,176.91,176.88,21.6785]
[1721972755631,1.41283898,176.97,176.88,34.1185]
[1721972755838,12.44,176.92,176.89,12.44]
[1721972757913,1.41303497,176.98,176.89,12.44]
[1721972758119,12.44,176.92,176.89,12.44]
[1721972758336,12.44,176.93,176.89,12.44]
[1721972759314,12.44,176.94,176.9,12.44]
[1721972759539,12.44,176.94,176.88,21.6785]
[1721972759540,12.44,176.94,176.91,12.44]
[1721972759911,12.44,176.94,176.9,12.44]
[1721972760315,12.44,176.93,176.89,12.44]
[1721972761235,12.44,176.92,176.88,34.1185]
[1721972762435,12.44,176.91,176.88,21.6785]
[1721972763025,12.44,176.9,176.88,21.6785]
[1721972763346,12.44,176.91,176.88,21.6785]
[1721972763822,1.41303041,176.96,176.88,21.6785]
[1721972764022,12.44,176.92,176.88,34.1185]
[1721972765037,12.44,176.94,176.9,12.44]
[1721972766222,12.44,176.93,176.9,12.44]
[1721972766427,12.44,176.93,176.89,12.44]
[1721972767949,5.6503,176.98,176.9,12.44]
[1721972768156,12.44,176.94,176.9,12.44]
[1721972768741,12.44,176.93,176.89,12.44]
[1721972769531,12.44,176.94,176.9,12.44]
[1721972772151,12.44,176.94,176.88,21.6785]
[1721972772152,12.44,176.94,176.89,12.44]
[1721972773130,12.44,176.93,176.89,12.44]
[1721972773347,12.44,176.92,176.88,34.1185]
[1721972773648,12.44,176.92,176.89,45.0]
[1721972775060,12.44,176.93,176.89,57.44]
[1721972775554,12.44,176.92,176.88,21.6785]
[1721972775756,12.44,176.91,176.88,21.6785]
[1721972776545,12.44,176.9,176.88,21.6785]
[1721972777437,12.44,176.89,176.85,15.8986]
[1721972777640,12.44,176.87,176.85,15.8986]
[1721972777868,12.44,176.86,176.83,6.2377]
[1721972778138,12.44,176.85,176.83,6.2377]
[1721972782439,12.44,176.84,176.81,15.8986]
[1721972782638,3.8847,176.93,176.81,15.8986]
[1721972782639,12.44,176.82,176.81,15.8986]
[1721972785355,12.44,176.82,176.79,6.6408]
[1721972785861,12.44,176.83,176.79,19.0808]
[1721972786244,12.44,176.82,176.79,6.6408]
[1721972786549,12.44,176.8,176.77,16.38]
[1721972787581,12.44,176.79,176.77,16.38]
[1721972787750,12.44,176.78,176.74,18.5257]
[1721972787951,1.41396973,176.84,176.74,6.0857]
[1721972787952,12.44,176.77,176.74,6.0857]
[1721972789563,12.44,176.79,176.75,12.44]
[1721972789771,49.76,176.85,176.74,18.5257]
[1721972789772,12.44,176.78,176.74,18.5257]
[1721972790168,12.44,176.76,176.74,6.0857]
[1721972790377,12.44,176.77,176.74,6.0857]
[1721972791774,5.6555,176.82,176.74,6.0857]
[1721972791966,12.44,176.77,176.74,6.0857]
[1721972792465,12.44,176.77,176.74,18.5257]
[1721972793586,12.44,176.77,176.74,6.0857]
[1721972793787,12.44,176.77,176.74,18.5257]
[1721972795598,12.44,176.75,176.74,6.0857]
[1721972795894,1.41427459,176.82,176.74,6.0857]
[1721972795895,12.44,176.76,176.74,6.0857]
[1721972798672,5.6555,176.82,176.74,6.0857]
[1721972798881,12.44,176.79,176.75,12.44]
[1721972799281,12.44,176.78,176.74,18.5257]
[1721972799785,12.44,176.8,176.76,12.44]
[1721972799974,12.44,176.79,176.75,57.44]
[1721972800176,12.44,176.78,176.74,18.5257]
[1721972800498,12.44,176.79,176.75,12.44]
[1721972800878,12.44,176.78,176.74,18.5257]
[1721972801079,12.44,176.79,176.75,57.44]
[1721972801584,12.44,176.8,176.76,12.44]
[1721972802680,1.41404415,176.87,176.78,12.44]
[1721972802879,12.44,176.81,176.77,12.44]
[1721972803489,12.44,176.8,176.76,12.44]
[1721972803883,12.44,176.79,176.75,57.44]
[1721972805905,12.44,176.81,176.77,12.44]
[1721972806294,12.44,176.8,176.77,12.44]
[1721972806483,12.44,176.8,176.76,12.44]
[1721972806803,12.44,176.81,176.78,12.44]
[1721972807206,22.50353087,176.88,176.78,12.44]
[1721972807410,12.44,176.82,176.79,12.44]
[1721972807778,12.44,176.82,176.78,12.44]
[1721972808183,12.44,176.83,176.79,12.44]
[1721972808394,7.06763233,176.87,176.75,45.0]
[1721972808395,5.6542,176.86,176.75,45.0]
[1721972808590,12.44,176.82,176.78,12.44]
[1721972808987,12.44,176.82,176.75,45.0]
[1721972809201,12.44,176.82,176.78,12.44]
[1721972810197,12.44,176.81,176.77,12.44]
[1721972812089,12.44,176.82,176.77,12.44]
[1721972812611,12.44,176.82,176.78,12.44]
[1721972813019,12.44,176.81,176.77,12.44]
[1721972813195,12.44,176.82,176.78,12.44]
[1721972814615,12.44,176.85,176.79,16.39669824]
[1721972814804,12.44,176.85,176.81,12.44]
[1721972815114,12.44,176.85,176.82,0.2829155]
[1721972816519,12.44,176.85,176.81,12.44]
[1721972817927,12.44,176.84,176.8,12.44]
[1721972818816,12.44,176.84,176.81,45.0]
[1721972821016,5.6532,176.89,176.81,45.0]
[1721972821217,12.44,176.84,176.81,45.0]
[1721972821417,12.44,176.84,176.79,16.1133]
[1721972821603,12.44,176.83,176.79,28.5533]
[1721972822521,1.41368295,176.88,176.74,21.3707]
[1721972822522,12.44,176.81,176.74,21.3707]
[1721972822713,12.44,176.79,176.76,12.44]
[1721972823306,12.44,176.78,176.74,33.8107]
[1721972824022,12.44,176.76,176.74,21.3707]
[1721972824226,12.44,176.75,176.71,12.44]
[1721972826044,12.44,176.75,176.7,21.8863]
[1721972826210,12.44,176.75,176.71,57.44]
[1721972827534,1.41438339,176.8,176.73,12.44]
[1721972827833,12.44,176.81,176.75,6.5554]
[1721972828038,12.44,176.8,176.76,12.44]
[1721972828236,12.44,176.79,176.75,18.9954]
[1721972832338,12.44,176.77,176.75,6.5554]
[1721972832538,12.44,176.77,176.73,12.44]
[1721972833346,12.44,176.78,176.74,12.44]
[1721972833515,1.41416041,176.82,176.74,12.44]
[1721972833720,12.44,176.77,176.74,12.44]
[1721972834036,12.44,176.77,176.71,6.6531]
[1721972834237,12.44,176.77,176.73,12.44]
[1721972834429,12.44,176.77,176.74,12.44]
[1721972834643,5.6555,176.82,176.74,12.44]
[1721972834958,5.29888354,176.85,176.75,12.44]
[1721972835119,12.44,176.81,176.77,12.44]
[1721972835317,1.4140341,176.85,176.78,12.44]
[1721972835714,12.44,176.81,176.77,12.44]
[1721972836452,12.44,176.8,176.76,28.155]
[1721972837358,5.6547,176.85,176.76,28.155]
[1721972837526,5.6547,176.85,176.77,12.44]
[1721972837527,12.44,176.81,176.77,12.44]
[1721972838238,5.6545,176.85,176.76,15.715]
[1721972838439,12.44,176.81,176.78,12.44]
[1721972838637,5.6545,176.85,176.78,12.44]
[1721972838942,12.44,176.81,176.78,12.44]
[1721972839316,21.0991,176.86,176.78,12.44]
[1721972839317,12.44,176.82,176.78,12.44]
[1721972839714,12.44,176.81,176.77,57.44]
[1721972841932,12.44,176.81,176.76,15.715]
[1721972842136,12.44,176.8,176.76,28.155]
[1721972842440,5.89679667,176.9,176.79,12.44]
[1721972842632,1.41368504,176.93,176.82,12.44]
[1721972842948,12.44,176.86,176.82,12.44]
[1721972843937,12.44,176.85,176.81,12.44]
[1721972844139,12.44,176.84,176.8,57.44]
[1721972845847,12.44,176.83,176.8,45.0]
[1721972846228,12.44,176.83,176.79,12.44]
[1721972847226,12.44,176.83,176.77,6.1611]
[1721972847431,12.44,176.83,176.79,12.44]
[1721972848657,12.44,176.84,176.8,12.44]
[1721972853781,12.44,176.83,176.79,12.44]
[1721972854269,12.44,176.84,176.8,12.44]
[1721972855066,12.44,176.81,176.78,45.0]
[1721972855272,12.44,176.81,176.77,18.6011]
[1721972856173,7.06770439,176.87,176.77,18.6011]
[1721972856362,12.44,176.82,176.78,57.44]
[1721972857482,12.44,176.81,176.78,45.0]
[1721972858278,12.44,176.81,176.77,18.6011]
[1721972858476,12.44,176.79,176.76,15.715]
[1721972858654,12.44,176.78,176.74,12.44]
[1721972859860,12.44,176.78,176.75,45.0]
[1721972860883,12.44,176.79,176.75,57.44]
[1721972861068,1.4141659,176.83,176.75,57.44]
[1721972861272,1.4141388,176.87,176.77,16.1562]
[1721972861461,12.44,176.86,176.79,6.2783]
[1721972861667,12.44,176.88,176.84,12.44]
[1721972866293,12.44,176.87,176.83,12.44]
[1721972867697,12.44,176.87,176.84,12.44]
[1721972868298,12.44,176.88,176.84,12.44]
[1721972875801,20.9306,176.92,176.84,12.44]
[1721972876095,12.44,176.88,176.84,12.44]
[1721972879593,5.6526,176.91,176.84,12.44]
[1721972879794,12.44,176.88,176.84,12.44]
[1721972880702,12.44,176.87,176.83,12.44]
[1721972881319,12.44,176.85,176.79,8.28419871]
[1721972881480,12.44,176.85,176.81,12.44]
[1721972882101,12.44,176.86,176.82,12.44]
[1721972889012,15.2783,176.92,176.79,6.2783]
[1721972889013,12.44,176.85,176.79,6.2783]